lending/lending_fUSD_20260312
["ID","MTS","AMOUNT","RATE_DAILY","PERIOD"]
[408243948,1773301834455,-600.49565647,0.00019316,2]
[408243949,1773301834465,-500.0,0.00019316,2]
[408243950,1773301834474,-500.0,0.00019316,2]
[408243951,1773301834483,-500.0,0.00019316,2]
[408243952,1773301834492,-500.0,0.00019316,2]
[408243953,1773301834502,-500.0,0.00019316,2]
[408243954,1773301834511,-500.0,0.00019316,2]
[408243955,1773301834524,-500.0,0.00019316,2]
[408243956,1773301834534,-500.0,0.00019316,2]
[408243957,1773301834543,-500.0,0.00019316,2]
[408243958,1773301834553,-500.0,0.00019316,2]
[408243959,1773301834562,-500.0,0.00019316,2]
[408243960,1773301834572,-538.90720653,0.00019316,2]
[408243961,1773301834581,-500.0,0.00019316,2]
[408243962,1773301834592,-500.0,0.00019316,2]
[408243963,1773301834601,-509.69645658,0.00019316,2]
[408243964,1773301834610,-64386.80674622,0.00019317,2]
[408243965,1773301834622,-2934.58769011,0.00019317,2]
[408243966,1773301834633,-20796.0477241,0.00019317,2]
[408243967,1773301834652,-371.27120976,0.00019317,2]
[408243968,1773301838096,-1412.62,0.00019317,2]
[408243969,1773301838221,-172509.12974902,0.00019317,2]
[408243970,1773301838259,-606.81999954,0.00019317,2]
[408243995,1773301840725,-500.0,0.00019316,2]
[408243996,1773301840734,-1201428.67338104,0.00019317,2]
[408243997,1773301840761,-2299.1,0.00019317,2]
[408244001,1773301843149,-103072.42030021,0.00019317,2]
[408244002,1773301843158,-4998.39,0.00019317,2]
[408244003,1773301843168,-1066.6,0.00019372,2]
[408244004,1773301843177,-305.57091289,0.00019373,2]
[408244005,1773301843186,-500.0,0.00019373,2]
[408244006,1773301843195,-500.0,0.00019373,2]
[408244007,1773301843204,-500.0,0.00019373,2]
[408244008,1773301843213,-500.0,0.00019373,2]
[408244009,1773301843222,-168.0,0.00019433,2]
[408244010,1773301843232,-2439.83,0.00019451,2]
[408244011,1773301843241,-420.0,0.00019539,2]
[408244012,1773301843251,-181.08010149,0.00019547,2]
[408244013,1773301843259,-200.0,0.00019547,2]
[408244014,1773301843268,-1123.0,0.00019587,2]
[408244015,1773301843278,-770.30487827,0.000196,2]
[408244016,1773301843287,-166.06,0.000196,2]
[408244017,1773301843296,-350.0,0.00019624,2]
[408244018,1773301843305,-200.0,0.00019635,2]
[408244019,1773301843315,-3055.6398,0.00019639,2]
[408244020,1773301843325,-1066.6,0.00019646,2]
[408244021,1773301843337,-168.0,0.0001965,2]
[408244022,1773301843347,-2807.0,0.0001968,2]
[408244023,1773301843356,-761.6,0.000197,2]
[408244024,1773301843365,-200.0,0.00019726,2]
[408244025,1773301843374,-500.0,0.00019726,2]
[408244026,1773301843383,-150.0,0.00019726,2]
[408244028,1773301843392,-150.0,0.00019726,2]
[408244029,1773301843402,-500.0,0.00019726,2]
[408244031,1773301843411,-500.0,0.00019726,2]
[408244033,1773301843421,-500.0,0.00019726,2]
[408244034,1773301843430,-150.0,0.00019726,2]
[408244035,1773301843439,-500.0,0.00019726,2]
[408244036,1773301843448,-150.0,0.00019726,2]
[408244037,1773301843457,-150.0,0.00019726,2]
[408244038,1773301843466,-630.0,0.00019726,2]
[408244039,1773301843476,-500.0,0.00019781,2]
[408244040,1773301843486,-155.46802108,0.00019781,2]
[408244041,1773301843495,-150.0,0.00019781,2]
[408244042,1773301843504,-500.0,0.00019781,2]
[408244043,1773301843513,-500.0,0.00019781,2]
[408244045,1773301843522,-500.0,0.00019781,2]
[408244046,1773301843534,-250.0,0.00019781,2]
[408244047,1773301843543,-500.0,0.00019781,2]
[408244048,1773301843552,-630.0,0.00019781,2]
[408244049,1773301843561,-200.0,0.00019781,2]
[408244050,1773301843571,-3561.264,0.00019781,2]
[408244051,1773301843580,-179.138,0.00019781,2]
[408244052,1773301843590,-1043.0,0.00019783,2]
[408244053,1773301843599,-620.0,0.00019783,2]
[408244054,1773301843608,-1343.0,0.00019783,2]
[408244055,1773301843617,-1280.0,0.00019783,2]
[408244056,1773301843627,-3751.0,0.00019783,2]
[408244057,1773301843635,-414.0,0.00019783,2]
[408244058,1773301843644,-353.39112616,0.00019785,2]
[408244059,1773301843653,-1205.59697,0.000198,2]
[408244060,1773301843662,-1205.59696,0.000198,2]
[408244061,1773301843671,-168.0,0.00019826,2]
[408244062,1773301843682,-500.0,0.00019836,2]
[408244063,1773301843691,-500.0,0.00019836,2]
[408244064,1773301843701,-150.0,0.00019836,2]
[408244065,1773301843710,-500.0,0.00019836,2]
[408244066,1773301843719,-500.0,0.00019836,2]
[408244067,1773301843729,-500.0,0.00019836,2]
[408244068,1773301843738,-630.0,0.00019836,2]
[408244069,1773301843750,-200.0,0.0001984,2]
[408244070,1773301843759,-168.0,0.00019859,2]
[408244071,1773301843769,-501.85682544,0.00019873,2]
[408244072,1773301843779,-500.0,0.00019873,2]
[408244073,1773301843792,-501.31771675,0.00019873,2]
[408244074,1773301843802,-500.0,0.00019873,2]
[408244075,1773301843812,-501.70326432,0.00019873,2]
[408244076,1773301843821,-502.93885847,0.00019873,2]
[408244077,1773301843833,-328.47473321,0.00019873,2]
[408244078,1773301843842,-500.0,0.00019873,2]
[408244079,1773301843852,-85141.4478506,0.0001988,2]
[408244080,1773301843862,-1288.8888654,0.0001988,2]
[408244081,1773301843872,-4988.1869144,0.0001988,2]
[408244082,1773301843882,-17171.371328,0.0001988,2]
[408244083,1773301843891,-9240.6278121,0.0001988,2]
[408244084,1773301843900,-3057.9570169,0.0001988,2]
[408244085,1773301843910,-584128.0535748,0.0001988,2]
[408244086,1773301843929,-500.0,0.0001989,2]
[408244087,1773301843939,-500.0,0.0001989,2]
[408244088,1773301843948,-150.0,0.0001989,2]
[408244089,1773301843958,-500.0,0.0001989,2]
[408244090,1773301843968,-500.0,0.0001989,2]
[408244091,1773301843977,-500.0,0.0001989,2]
[408244092,1773301843987,-630.0,0.0001989,2]
[408244093,1773301843996,-500.0,0.00019899,2]
[408244094,1773301844005,-500.0,0.00019899,2]
[408244095,1773301844016,-500.0,0.00019899,2]
[408244096,1773301844025,-23202.4899,0.000199,2]
[408244097,1773301844035,-1000.0,0.000199,2]
[408244098,1773301844044,-731.8971,0.000199,2]
[408244099,1773301844053,-200.0,0.000199,2]
[408244100,1773301844063,-361.6120434,0.000199,2]
[408244101,1773301844072,-3371.0817644,0.000199,2]
[408244102,1773301844081,-1600.0,0.000199,2]
[408244103,1773301844091,-1526.0,0.000199,2]
[408244104,1773301844100,-2074.0,0.000199,2]
[408244105,1773301844110,-2439.83,0.00019904,2]
[408244106,1773301844119,-200.0,0.00019919,2]
[408244107,1773301844129,-1066.6,0.0001992,2]
[408244108,1773301844138,-221.0,0.00019925,2]
[408244109,1773301844148,-221.0,0.00019937,2]
[408244110,1773301844157,-200.0,0.00019945,2]
[408244111,1773301844167,-500.0,0.00019945,2]
[408244112,1773301844176,-150.63243002,0.00019945,2]
[408244113,1773301844186,-500.0,0.00019945,2]
[408244114,1773301844195,-500.0,0.00019945,2]
[408244115,1773301844205,-500.0,0.00019945,2]
[408244116,1773301844215,-500.0,0.00019945,2]
[408244117,1773301844225,-630.0,0.00019945,2]
[408244118,1773301844234,-502.06523093,0.00019973,2]
[408244119,1773301844244,-200.0,0.00019973,2]
[408244120,1773301844253,-168.0,0.00019978,2]
[408244121,1773301844263,-193.07773758,0.0001999,2]
[408244122,1773301844273,-151.0,0.00019997,2]
[408244123,1773301844282,-151.0,0.00019997,2]
[408244124,1773301844292,-151.0,0.00019997,2]
[408244125,1773301844301,-200.0,0.00019997,2]
[408244126,1773301844311,-542.60368113,0.00019999,2]
[408244127,1773301844320,-500.0,0.00019999,2]
[408244128,1773301844329,-500.0,0.00019999,2]
[408244129,1773301844339,-398.111047,0.00019999,2]
[408244130,1773301844348,-500.0,0.00019999,2]
[408244131,1773301844357,-500.0,0.00019999,2]
[408244132,1773301844367,-500.0,0.00019999,2]
[408244133,1773301844376,-500.0,0.00019999,2]
[408244134,1773301844386,-500.0,0.00019999,2]
[408244135,1773301844396,-500.0,0.00019999,2]
[408244136,1773301844406,-500.0,0.00019999,2]
[408244137,1773301844415,-285.66955674,0.0002,2]
[408244138,1773301844425,-500.0,0.0002,2]
[408244139,1773301844434,-385.75730998,0.0002,2]
[408244140,1773301844444,-500.0,0.0002,2]
[408244141,1773301844453,-500.0,0.0002,2]
[408244142,1773301844466,-630.0,0.0002,2]
[408244143,1773301844475,-589070.60509277,0.0002,2]
[408244144,1773301844490,-637.40497784,0.0002,2]
[408244145,1773301844502,-112511.18924873,0.0002,2]
[408244146,1773301844517,-1425.34270872,0.0002,2]
[408244147,1773301844529,-325.58015431,0.0002,2]
[408244148,1773301844541,-1100.98785188,0.0002,2]
[408244149,1773301844552,-1071.18168082,0.0002,2]
[408244150,1773301846024,-13371.4208097,0.0002,2]
[408244151,1773301846036,-100353.80908532,0.0002,2]
[408244158,1773302361100,1539.87377853,0.00013,2]
[408244159,1773302361121,1728.77937814,0.00013,2]
[408244165,1773302511140,1500.0,0.00014,2]
[408244166,1773302535364,1466.65499696,0.0001,2]
[408244169,1773302555321,5304.5656249,9.5e-05,3]
[408244170,1773302555342,10000.0,9.5e-05,3]
[408244171,1773302555363,10000.0,9.5e-05,3]
[408244172,1773302555383,3000.0,9.5e-05,3]
[408244173,1773302555406,10000.01,9.5e-05,3]
[408244174,1773302555429,10000.01,9.5e-05,3]
[408244175,1773302555452,10000.01,9.5e-05,3]
[408244176,1773302555474,10000.01,9.5e-05,3]
[408244177,1773302555500,317841.55686223,9.5e-05,3]
[408244178,1773302591617,166.0,0.000144,2]
[408244179,1773302591889,166.0,0.000144,2]
[408244180,1773302593920,155.0,0.000144,2]
[408244181,1773302646402,164.0,0.000144,2]
[408244182,1773302648079,155.0,0.000144,2]
[408244183,1773302704812,169.0,0.000144,2]
[408244184,1773302705293,157.0,0.000144,2]
[408244185,1773302766749,169.0,0.000144,2]
[408244187,1773302924283,2000.0,0.0002,120]
[408244188,1773302945247,-1424.40732054,0.00015,2]
[408244189,1773303007278,157.0,0.000144,2]
[408244191,1773303032136,-82.34642465,0.00015,2]
[408244192,1773303032146,-274.0,0.00015,2]
[408244193,1773303032157,-76.87139006,0.00015,30]
[408244197,1773303032186,-423.12860994,0.00015,30]
[408244198,1773303032197,-612.02105801,0.00015,30]
[408244200,1773303032206,-509.03526404,0.00015,30]
[408244202,1773303032215,-157.85,0.00015052,2]
[408244204,1773303032225,-967.0,0.00016498,2]
[408244206,1773303032234,-127.05506232,0.00016498,2]
[408244207,1773303032249,-102.94493768,0.00016498,2]
[408244208,1773303032258,-1200.0,0.00016498,2]
[408244209,1773303032268,-550.0,0.00016499,2]
[408244210,1773303032278,-300.0,0.00016499,2]
[408244211,1773303032287,-557.36,0.000165,2]
[408244212,1773303032296,-2500.0,0.000165,2]
[408244213,1773303032306,-1033.63057365,0.000165,2]
[408244214,1773303032315,-214.95038775,0.000165,2]
[408244215,1773303032326,-231.14428575,0.000165,2]
[408244216,1773303032336,-500.0,0.000165,2]
[408244217,1773303032346,-270.62653071,0.000165,2]
[408244218,1773303032355,-600.0,0.000165,2]
[408244219,1773303032365,-300.38922709,0.000165,2]
[408244220,1773303032373,-24675.68851398,0.00017,2]
[408244221,1773303032383,-514.0,0.00017,2]
[408244222,1773303032393,-4103.98438213,0.0001711,2]
[408244223,1773303032402,-500.0,0.00017479,2]
[408244224,1773303032411,-261.75,0.000175,2]
[408244225,1773303032420,-610.08259764,0.00017617,2]
[408244226,1773303032429,-665.0,0.00017621,2]
[408244227,1773303032438,-364.0,0.00017658,2]
[408244228,1773303032447,-500.2058558,0.00018,2]
[408244229,1773303032456,-420.0,0.0001803,2]
[408244230,1773303032466,-1680.0,0.00018119,2]
[408244231,1773303032475,-200.0,0.00018193,2]
[408244232,1773303032485,-1135.55,0.00018254,2]
[408244233,1773303032494,-418.92,0.00018271,2]
[408244234,1773303032503,-500.0,0.00018356,7]
[408244235,1773303032513,-24246.02,0.00018356,2]
[408244236,1773303032523,-418.95275802,0.00018478,2]
[408244237,1773303032532,-202.22668998,0.00018522,2]
[408244238,1773303032541,-29999.99,0.00018533,2]
[408244239,1773303032550,-504.2091639,0.00018569,2]
[408244240,1773303032559,-1275.32,0.00018669,2]
[408244242,1773303032568,-200.0,0.00018674,2]
[408244244,1773303032577,-379.29541337,0.00018706,2]
[408244246,1773303032586,-173.23680772,0.00018793,2]
[408244248,1773303032595,-177.59,0.00018858,2]
[408244250,1773303032604,-1364.0,0.00018904,2]
[408244252,1773303032614,-500.0,0.00018999,2]
[408244254,1773303032623,-200.0,0.00018999,2]
[408244256,1773303032632,-174.61919141,0.00018999,2]
[408244258,1773303032641,-500.0,0.00019008,2]
[408244260,1773303032650,-1135.55,0.00019167,2]
[408244262,1773303032659,-166.68,0.00019187,2]
[408244263,1773303032668,-2000.0,0.000192,2]
[408244264,1773303032677,-1000.0,0.00019216,2]
[408244265,1773303032685,-1000.0,0.00019217,2]
[408244266,1773303032694,-414.0,0.00019283,2]
[408244267,1773303032704,-385.12,0.00019283,2]
[408244268,1773303032712,-500.0,0.00019316,2]
[408244269,1773303032722,-500.0,0.00019316,2]
[408244270,1773303032731,-500.0,0.00019316,2]
[408244271,1773303032740,-500.0,0.00019316,2]
[408244272,1773303032750,-152.0,0.00019371,3]
[408244273,1773303032759,-6084.97,0.00019528,2]
[408244274,1773303032768,-200.0,0.00019547,2]
[408244275,1773303032777,-207.40184916,0.00019547,2]
[408244276,1773303032786,-157.78082569,0.00019569,2]
[408244277,1773303032795,-699.0,0.00019584,2]
[408244278,1773303032805,-221.0,0.0001963,2]
[408244279,1773303032814,-418.92,0.00019656,2]
[408244280,1773303032823,-847.0,0.0001968,2]
[408244281,1773303032832,-7566.42713488,0.000197,2]
[408244282,1773303032841,-587.0,0.00019703,2]
[408244283,1773303032850,-150.0,0.00019726,2]
[408244284,1773303032859,-150.0,0.00019726,2]
[408244285,1773303032871,-500.0,0.00019726,2]
[408244286,1773303032880,-150.0,0.00019726,2]
[408244287,1773303032889,-150.0,0.00019726,2]
[408244288,1773303032898,-500.0,0.00019726,2]
[408244289,1773303032908,-150.0,0.00019726,2]
[408244290,1773303032918,-472.0,0.00019726,2]
[408244291,1773303032927,-150.0,0.00019726,2]
[408244292,1773303032936,-442.5986998,0.00019726,2]
[408244293,1773303032947,-57.4013002,0.00019726,2]
[408244294,1773303032957,-194.42908711,0.00019773,2]
[408244295,1773303032966,-150.0,0.00019781,2]
[408244296,1773303032975,-150.0,0.00019781,2]
[408244297,1773303032984,-500.0,0.00019781,2]
[408244298,1773303032993,-150.0,0.00019781,2]
[408244299,1773303033002,-150.0,0.00019781,2]
[408244300,1773303033011,-500.0,0.00019781,2]
[408244301,1773303033020,-472.0,0.00019781,2]
[408244302,1773303033029,-150.0,0.00019781,2]
[408244303,1773303033038,-500.0,0.00019781,2]
[408244304,1773303033047,-513.53658551,0.00019781,2]
[408244305,1773303033056,-3176.979,0.00019781,2]
[408244306,1773303033066,-173.215,0.00019781,2]
[408244307,1773303033075,-150.0,0.00019783,2]
[408244308,1773303033084,-150.0,0.00019783,2]
[408244309,1773303033093,-150.0,0.00019783,2]
[408244310,1773303033102,-150.0,0.00019783,2]
[408244311,1773303033120,-1043.0,0.00019783,2]
[408244312,1773303033130,-1343.0,0.00019783,2]
[408244313,1773303033140,-620.0,0.00019783,2]
[408244314,1773303033150,-150.0,0.00019783,2]
[408244315,1773303033159,-1280.0,0.00019783,2]
[408244316,1773303033168,-2500.0,0.000198,2]
[408244317,1773303033177,-2091.31675194,0.000198,2]
[408244318,1773303033190,-8256.26653372,0.000198,2]
[408244319,1773303033199,-418.92,0.00019807,2]
[408244320,1773303033207,-699.0,0.00019808,2]
[408244321,1773303033216,-200.0,0.00019836,2]
[408244322,1773303033225,-200.0,0.00019836,2]
[408244323,1773303033234,-500.0,0.00019836,2]
[408244324,1773303033243,-200.0,0.00019836,2]
[408244325,1773303033252,-200.0,0.00019836,2]
[408244326,1773303033261,-500.0,0.00019836,2]
[408244327,1773303033270,-472.0,0.00019836,2]
[408244328,1773303033279,-500.0,0.00019836,2]
[408244329,1773303033288,-200.0,0.0001984,2]
[408244330,1773303033297,-17405.78691222,0.0001987,2]
[408244331,1773303033306,-500.0,0.0001989,2]
[408244332,1773303033315,-500.0,0.0001989,2]
[408244333,1773303033324,-472.0,0.0001989,2]
[408244334,1773303033334,-500.0,0.0001989,2]
[408244335,1773303033343,-500.0,0.00019899,2]
[408244336,1773303033352,-500.0,0.00019899,2]
[408244337,1773303033361,-500.0,0.00019899,2]
[408244338,1773303033370,-500.0,0.00019899,2]
[408244339,1773303033379,-500.0,0.00019899,2]
[408244340,1773303033388,-500.0,0.00019899,2]
[408244341,1773303033397,-500.0,0.00019899,2]
[408244342,1773303033407,-1200.0,0.00019899,2]
[408244343,1773303033417,-500.0,0.00019899,2]
[408244344,1773303033426,-500.0,0.00019899,2]
[408244345,1773303033436,-500.0,0.00019899,2]
[408244346,1773303033445,-500.0,0.00019899,2]
[408244347,1773303033455,-500.0,0.00019899,2]
[408244348,1773303033465,-500.0,0.00019899,2]
[408244349,1773303033474,-463.08619581,0.00019899,2]
[408244350,1773303033483,-500.0,0.00019899,2]
[408244351,1773303033492,-500.0,0.00019899,2]
[408244352,1773303033501,-500.0,0.00019899,2]
[408244353,1773303033510,-500.0,0.00019899,2]
[408244354,1773303033520,-500.0,0.00019899,2]
[408244355,1773303033530,-500.0,0.00019899,2]
[408244356,1773303033539,-500.0,0.00019899,2]
[408244357,1773303033548,-500.0,0.00019899,2]
[408244358,1773303033557,-500.0,0.00019899,2]
[408244359,1773303033567,-500.0,0.00019899,2]
[408244360,1773303033575,-177.17540265,0.00019899,2]
[408244361,1773303033740,-322.82459735,0.00019899,2]
[408244362,1773303033750,-263.73253793,0.00019899,2]
[408244363,1773303033780,-236.26746207,0.00019899,2]
[408244364,1773303033790,-263.23548425,0.00019899,2]
[408244365,1773303033802,-236.76451575,0.00019899,2]
[408244366,1773303033811,-273.23548425,0.00019899,2]
[408244367,1773303033822,-226.76451575,0.00019899,2]
[408244368,1773303033832,-500.0,0.00019899,2]
[408244369,1773303033841,-500.0,0.00019899,2]
[408244370,1773303033850,-500.0,0.00019899,2]
[408244371,1773303033859,-500.0,0.00019899,2]
[408244372,1773303033869,-500.0,0.00019899,2]
[408244373,1773303033878,-408.03520548,0.00019899,2]
[408244374,1773303033889,-91.96479452,0.00019899,2]
[408244375,1773303033899,-500.0,0.00019899,2]
[408244376,1773303033908,-500.0,0.00019899,2]
[408244377,1773303033918,-500.0,0.00019899,2]
[408244378,1773303033927,-500.0,0.00019899,2]
[408244379,1773303033937,-180.03520548,0.00019899,2]
[408244380,1773303033948,-3.5920335,0.00019899,2]
[408244381,1773303033956,-500.0,0.00019899,2]
[408244382,1773303033966,-1261.29906389,0.000199,2]
[408244383,1773303038236,-750.97674804,0.000199,2]
[408244385,1773303038248,-11760.25759445,0.000199,2]
[408244386,1773303038364,-718.06097248,0.000199,2]
[408244387,1773303038375,-264.49325669,0.000199,2]
[408244388,1773303038418,-1086.4395005,0.000199,2]
[408244393,1773303040673,-4913.35357007,0.000199,2]
[408244394,1773303040918,-506.93,0.000199,2]
[408244395,1773303040930,-394.89,0.000199,2]
[408244396,1773303040962,-926.34778284,0.000199,2]
[408244402,1773303041860,164.14,9.531e-05,2]
[408244403,1773303042050,164.14,0.00014297,2]
[408244422,1773303043544,-164.14,0.00019063,2]
[408244423,1773303043553,-929.51756926,0.000196,2]
[408244424,1773303043563,-33847.95524701,0.000199,2]
[408244433,1773303046162,-628.207351,0.00019773,2]
[408244434,1773303046173,-293.792649,0.00019773,2]
[408244435,1773303046182,-6567.66545263,0.000199,2]
[408244436,1773303046371,-1879.016608,0.000199,2]
[408244437,1773303046407,-5539.51628,0.000199,2]
[408244447,1773303157001,500.0,9.4e-05,2]
[408244449,1773303458424,1355.91,0.00014261,2]
[408244451,1773303578559,-172.24095296,0.00014899,2]
[408244452,1773303578588,-4655.52809408,0.00014912,2]
[408244453,1773303581489,-3266.402145,0.00014824,2]
[408244454,1773303581518,-344.47190592,0.00014912,2]
[408244455,1773303581547,-600.0,0.00014924,2]
[408244456,1773303581576,-300.0,0.00014947,2]
[408244457,1773303587759,-5000.0,0.00014948,2]
[408244458,1773303590665,-1671.0157578,0.00014948,2]
[408244459,1773303590695,-395.33154876,0.00014949,2]
[408244460,1773303590722,-476.07802003,0.00014949,2]
[408244461,1773303590750,-352.234,0.00014969,2]
[408244462,1773303590778,-300.0,0.00014999,2]
[408244463,1773303590807,-1200.0,0.00014999,2]
[408244464,1773303590836,-300.0,0.00014999,2]
[408244465,1773303590865,-150.0,0.00014999,2]
[408244466,1773303590892,-10.69134682,0.00014999,2]
[408244479,1773303610249,-289.30865318,0.00014999,2]
[408244480,1773303610279,-1200.0,0.00014999,2]
[408244481,1773303610308,-250.0,0.00015,2]
[408244482,1773303610339,-500.0,0.00015,30]
[408244483,1773303610371,-500.0,0.00015,30]
[408244484,1773303610401,-500.0,0.00015,30]
[408244485,1773303610430,-500.0,0.00015,30]
[408244486,1773303610458,-500.0,0.00015,30]
[408244487,1773303610487,-500.0,0.00015,30]
[408244488,1773303610516,-21.39269364,0.00015,30]
[408244489,1773303610729,-12.22551049,0.00015,30]
[408244492,1773303624428,-466.38179587,0.00015,30]
[408244493,1773303624457,-500.0,0.00015,30]
[408244494,1773303624485,-658.36476939,0.00015,30]
[408244495,1773303624514,-255.0,0.00016124,2]
[408244496,1773303624542,-500.58140027,0.00016275,2]
[408244497,1773303624571,-250.0,0.00016389,2]
[408244498,1773303624600,-500.0,0.00016389,2]
[408244499,1773303624628,-300.0,0.00016389,2]
[408244500,1773303624656,-600.0,0.00016389,2]
[408244501,1773303624916,-1939.35406894,0.00016389,2]
[408244503,1773303642234,-3060.64593106,0.00016389,2]
[408244504,1773303642263,-358.79938338,0.00016389,2]
[408244505,1773303642298,-500.0,0.00016389,2]
[408244506,1773303642327,-300.0,0.00016389,2]
[408244507,1773303642356,-195.0,0.00016499,2]
[408244508,1773303642388,-195.0,0.00016499,2]
[408244509,1773303642418,-197.61017159,0.00016499,2]
[408244510,1773303642446,-135.89902794,0.00016499,2]
[408244511,1773303642574,-114.10097206,0.00016499,2]
[408244512,1773303645089,-1680.0,0.00016499,2]
[408244513,1773303645118,-1380.17,0.00016883,2]
[408244516,1773303658381,-1832.43,0.00016909,2]
[408244517,1773303658409,-512.0,0.00017,2]
[408244518,1773303658438,-536.6571,0.00017,2]
[408244519,1773303658469,-166.66,0.00017337,2]
[408244520,1773303658499,-433.0,0.00017339,2]
[408244521,1773303658526,-406.63,0.00017627,2]
[408244522,1773303658554,-166.66,0.00017702,2]
[408244523,1773303658582,-500.53878535,0.00017845,2]
[408244524,1773303658610,-390.46594383,0.00017845,2]
[408244525,1773303658750,-109.92634164,0.00017845,2]
[408244526,1773303664485,-1015.4010762,0.000179,2]
[408244527,1773303664514,-166.66,0.00018067,2]
[408244528,1773303664543,-406.63,0.00018068,2]
[408244529,1773303664573,-646.0,0.00018149,2]
[408244530,1773303686496,500.0,0.00017822,2]
[408244534,1773303705992,-172.24095294,0.00018158,2]
[408244535,1773303706021,-168.0,0.00018258,2]
[408244536,1773303706051,-168.0,0.00018321,2]
[408244537,1773303706081,-850.0,0.0001835,2]
[408244538,1773303706213,-6783.52809412,0.00018351,2]
[408244539,1773303706245,-1063.59287464,0.00018351,2]
[408244540,1773303706275,-2872.82425072,0.00018351,2]
[408244541,1773303706314,-2127.17574928,0.00018351,2]
[408244542,1773303712071,-5000.0,0.00018351,2]
[408244543,1773303717643,0.01,0.00017,2]
[408244544,1773303718157,-511.99,0.00017,2]
[408244545,1773303858600,1005.10564484,0.00016908,2]
[408244546,1773303905229,204.0,0.00016909,2]
[408244548,1773304154169,-512.0,0.00017,2]
[408244549,1773304154192,-300.0,0.00017382,2]
[408244550,1773304154214,-617.01075785,0.00017383,2]
[408244551,1773304172247,-1294.0,0.00017383,2]
[408244556,1773304231449,-7943.11791015,0.00017383,2]
[408244557,1773304231460,-2141.9877528,0.00017461,2]
[408244558,1773304231472,-1963.26,0.00017764,2]
[408244559,1773304231485,-1000.0,0.00018082,2]
[408244560,1773304231496,-300.0,0.00018355,2]
[408244561,1773304231508,-531.20001849,0.00018356,7]
[408244562,1773304231520,-1999.0,0.00018356,2]
[408244563,1773304231533,-166.66,0.00018432,2]
[408244564,1773304231544,-406.63,0.00018509,2]
[408244565,1773304231555,-7505.10971388,0.0001851,2]
[408244566,1773304231566,-5916.84503447,0.0001851,2]
[408244567,1773304231579,-2437.5719377,0.0001851,2]
[408244568,1773304231592,-9839.62547174,0.00018582,2]
[408244569,1773304231604,-850.0,0.00018588,2]
[408244570,1773304231615,-151.0,0.00018589,2]
[408244571,1773304231627,-151.0,0.00018589,2]
[408244572,1773304231638,-151.0,0.00018589,2]
[408244573,1773304231651,-151.0,0.00018589,2]
[408244574,1773304231662,-151.0,0.00018589,2]
[408244576,1773304231676,-151.0,0.00018589,2]
[408244577,1773304231689,-151.0,0.00018589,2]
[408244578,1773304231700,-151.0,0.00018589,2]
[408244580,1773304231712,-151.0,0.00018589,2]
[408244582,1773304231723,-151.0,0.00018589,2]
[408244584,1773304231737,-151.0,0.00018589,2]
[408244585,1773304231750,-144.80018517,0.00018589,2]
[408244587,1773304231765,-6.19981483,0.00018589,2]
[408244589,1773304231775,-151.0,0.00018589,2]